fUSD/lending_fUSD_20240104
["ID","MTS","AMOUNT","RATE_DAILY","PERIOD"]
[310204799,1704400270607,-500.0,0.00033972,2]
[310204800,1704400270616,-1988.3,0.00033972,2]
[310204801,1704400270625,-500.0,0.00033972,2]
[310204802,1704400270634,-1033.94,0.00033972,2]
[310204803,1704400270644,-500.0,0.00033972,2]
[310204804,1704400270654,-500.0,0.00033972,2]
[310204805,1704400270662,-8023.99,0.00033972,2]
[310204806,1704400270671,-2729.72,0.00033972,2]
[310204807,1704400270681,-500.0,0.00033972,2]
[310204808,1704400270690,-500.0,0.00033972,2]
[310204809,1704400270700,-500.0,0.00033972,2]
[310204810,1704400270709,-500.0,0.00033972,2]
[310204811,1704400270718,-1421.2,0.00033972,2]
[310204812,1704400270727,-2075.81,0.00033972,2]
[310204813,1704400270736,-500.0,0.00033972,2]
[310204814,1704400270746,-2507.15,0.00033972,2]
[310204815,1704400270755,-1492.24,0.00033972,2]
[310204816,1704400270765,-500.0,0.00033972,2]
[310204817,1704400270773,-500.0,0.00033972,2]
[310204818,1704400270783,-500.0,0.00033972,2]
[310204819,1704400270792,-500.0,0.00033972,2]
[310204820,1704400270801,-5784.19,0.00033972,2]
[310204821,1704400270810,-1148.25,0.00033972,2]
[310204822,1704400270820,-500.0,0.00033972,2]
[310204823,1704400270829,-500.0,0.00033972,2]
[310204824,1704400270838,-500.0,0.00033972,2]
[310204825,1704400270848,-512.73,0.00033972,2]
[310204826,1704400270858,-500.08,0.00033972,2]
[310204827,1704400270867,-500.0,0.00033972,2]
[310204828,1704400270876,-714.23,0.00033972,2]
[310204829,1704400270885,-500.0,0.00033972,2]
[310204830,1704400270894,-500.0,0.00033972,2]
[310204831,1704400270904,-500.0,0.00033972,2]
[310204832,1704400270913,-500.0,0.00033972,2]
[310204833,1704400270922,-500.0,0.00033972,2]
[310204834,1704400270931,-582.44,0.00033972,2]
[310204835,1704400270940,-500.0,0.00033972,2]
[310204836,1704400270951,-500.0,0.00033972,2]
[310204837,1704400270961,-500.0,0.00033972,2]
[310204838,1704400270970,-565.27,0.00033972,2]
[310204839,1704400270979,-799.36,0.00033972,2]
[310204840,1704400270989,-500.0,0.00033972,2]
[310204841,1704400270998,-500.0,0.00033972,2]
[310204842,1704400271007,-500.0,0.00033972,2]
[310204843,1704400271016,-500.0,0.00033972,2]
[310204844,1704400271026,-500.0,0.00033972,2]
[310204845,1704400271036,-1533.04,0.00033972,2]
[310204846,1704400271045,-1291.64,0.00033972,2]
[310204847,1704400271054,-654.95,0.00033972,2]
[310204848,1704400271063,-500.0,0.00033972,2]
[310204849,1704400271072,-1046.38,0.00033972,2]
[310204850,1704400271082,-500.0,0.00033972,2]
[310204851,1704400271091,-500.0,0.00033972,2]
[310204852,1704400271100,-1168.15,0.00033972,2]
[310204853,1704400271109,-1279.36,0.00033972,2]
[310204854,1704400271118,-500.0,0.00033972,2]
[310204855,1704400271128,-500.0,0.00033972,2]
[310204856,1704400271137,-774.31,0.00033972,2]
[310204857,1704400271146,-500.0,0.00033972,2]
[310204858,1704400271156,-1178.66,0.00033972,2]
[310204859,1704400271165,-2705.72,0.00033972,2]
[310204860,1704400271174,-500.0,0.00033972,2]
[310204861,1704400271183,-540.01,0.00033972,2]
[310204862,1704400271192,-500.0,0.00033972,2]
[310204863,1704400271203,-800.68,0.00033972,2]
[310204864,1704400271214,-683.02,0.00033972,2]
[310204865,1704400271222,-500.0,0.00033972,2]
[310204866,1704400271229,-1033.15,0.00033972,2]
[310204867,1704400271238,-500.0,0.00033972,2]
[310204868,1704400271246,-500.0,0.00033972,2]
[310204869,1704400271256,-664.5,0.00033972,2]
[310204870,1704400271265,-5429.5,0.00033972,2]
[310204871,1704400271275,-787.99,0.00033972,2]
[310204872,1704400271284,-500.0,0.00033972,2]
[310204873,1704400271293,-500.0,0.00033972,2]
[310204874,1704400271303,-1185.9,0.00033972,2]
[310204875,1704400271313,-500.0,0.00033972,2]
[310204876,1704400271323,-502.99,0.00033972,2]
[310204877,1704400271334,-803.67,0.00033972,2]
[310204878,1704400271345,-500.0,0.00033972,2]
[310204879,1704400271355,-703.08,0.00033972,2]
[310204880,1704400271364,-500.0,0.00033972,2]
[310204881,1704400271375,-931.91,0.00033972,2]
[310204882,1704400271385,-500.0,0.00033972,2]
[310204883,1704400271398,-3045.47,0.00033972,2]
[310204884,1704400271409,-500.0,0.00033972,2]
[310204885,1704400271418,-500.0,0.00033972,2]
[310204886,1704400271428,-924.28,0.00033972,2]
[310204887,1704400271438,-500.0,0.00033972,2]
[310204888,1704400271448,-612.45,0.00033972,2]
[310204889,1704400271457,-1664.58,0.00033972,2]
[310204890,1704400271467,-1719.17,0.00033972,2]
[310204891,1704400271476,-650.67,0.00033972,2]
[310204892,1704400271486,-500.0,0.00033972,2]
[310204893,1704400271496,-837.7,0.00033972,2]
[310204894,1704400271506,-651.85,0.00033972,2]
[310204895,1704400271516,-1763.88,0.00033972,2]
[310204896,1704400271525,-500.0,0.00033972,2]
[310204897,1704400271536,-500.0,0.00033972,2]
[310204898,1704400271548,-5455.26,0.00033972,2]
[310204899,1704400271558,-595.32,0.00033972,2]
[310204900,1704400271568,-500.0,0.00033972,2]
[310204901,1704400271577,-500.0,0.00033972,2]
[310204902,1704400271586,-500.0,0.00033972,2]
[310204903,1704400271595,-864.85,0.00033972,2]
[310204904,1704400271604,-1546.03,0.00033972,2]
[310204905,1704400271614,-500.0,0.00033972,2]
[310204906,1704400271625,-618.44,0.00033972,2]
[310204907,1704400271635,-500.0,0.00033972,2]
[310204908,1704400271644,-1928.75,0.00033972,2]
[310204909,1704400271654,-500.0,0.00033972,2]
[310204910,1704400271665,-500.0,0.00033972,2]
[310204911,1704400271674,-575.7,0.00033972,2]
[310204912,1704400271683,-589.02,0.00033972,2]
[310204913,1704400271694,-2873.21,0.00033972,2]
[310204914,1704400271704,-500.0,0.00033972,2]
[310204915,1704400271714,-500.0,0.00033972,2]
[310204916,1704400271726,-501.82,0.00033972,2]
[310204917,1704400271735,-500.0,0.00033972,2]
[310204918,1704400271745,-500.0,0.00033972,2]
[310204919,1704400271754,-500.0,0.00033972,2]
[310204920,1704400271764,-500.0,0.00033972,2]
[310204921,1704400271773,-902.0,0.00033972,2]
[310204922,1704400271782,-500.0,0.00033972,2]
[310204923,1704400271791,-500.0,0.00033972,2]
[310204924,1704400271801,-1565.07,0.00033972,2]
[310204925,1704400271811,-500.0,0.00033972,2]
[310204926,1704400271823,-1472.89,0.00033972,2]
[310204927,1704400271834,-6496.65,0.00033972,2]
[310204928,1704400271844,-500.0,0.00033972,2]
[310204929,1704400271856,-864.86,0.00033972,2]
[310204930,1704400271866,-500.0,0.00033972,2]
[310204931,1704400271875,-500.0,0.00033972,2]
[310204932,1704400271884,-429.89217353,0.00033972,2]
[310204933,1704400271894,-500.0,0.00033972,2]
[310204934,1704400271903,-500.0,0.00033972,2]
[310204935,1704400272040,-500.0,0.00033972,2]
[310204936,1704400272059,-500.0,0.00033972,2]
[310204937,1704400272069,-659.36,0.00033972,2]
[310204938,1704400272079,-500.0,0.00033972,2]
[310204939,1704400272089,-539.42,0.00033972,2]
[310204940,1704400272098,-2834.51,0.00033972,2]
[310204941,1704400272108,-500.0,0.00033972,2]
[310204942,1704400272118,-535.67,0.00033972,2]
[310204943,1704400272128,-500.0,0.00033972,2]
[310204944,1704400272137,-772.31,0.00033972,2]
[310204945,1704400272147,-509.18668929,0.00033972,2]
[310204946,1704400272156,-1511.83,0.00033972,2]
[310204947,1704400272166,-500.0,0.00033972,2]
[310204948,1704400272175,-730.25,0.00033972,2]
[310204949,1704400272184,-500.0,0.00033972,2]
[310204950,1704400272194,-597.99,0.00033972,2]
[310204951,1704400272204,-1373.46,0.00033972,2]
[310204952,1704400272214,-500.0,0.00033972,2]
[310204953,1704400272224,-500.0,0.00033972,2]
[310204954,1704400272233,-1411.58,0.00033972,2]
[310204955,1704400272243,-500.0,0.00033972,2]
[310204956,1704400272252,-1122.72,0.00033972,2]
[310204957,1704400272264,-844.92,0.00033972,2]
[310204958,1704400272274,-500.0,0.00033972,2]
[310204959,1704400272283,-500.0,0.00033972,2]
[310204960,1704400272292,-500.0,0.00033972,2]
[310204961,1704400272301,-938.79,0.00033972,2]
[310204962,1704400272310,-700.27,0.00033972,2]
[310204963,1704400272319,-500.0,0.00033972,2]
[310204964,1704400272328,-500.0,0.00033972,2]
[310204965,1704400272337,-2603.65,0.00033972,2]
[310204966,1704400272346,-500.0,0.00033972,2]
[310204967,1704400272356,-500.0,0.00033972,2]
[310204968,1704400272365,-690.56,0.00033972,2]
[310204969,1704400272374,-500.0,0.00033972,2]
[310204970,1704400272384,-1114.57,0.00033972,2]
[310204971,1704400272393,-500.0,0.00033972,2]
[310204972,1704400272403,-1863.03,0.00033972,2]
[310204973,1704400272412,-412.88260864,0.00033972,2]
[310204974,1704400272422,-500.0,0.00033972,2]
[310204975,1704400272431,-625.26,0.00033972,2]
[310204976,1704400272441,-500.0,0.00033972,2]
[310204977,1704400272453,-500.0,0.00033972,2]
[310204978,1704400272462,-1822.1,0.00033972,2]
[310204979,1704400272471,-500.0,0.00033972,2]
[310204980,1704400272480,-500.0,0.00033972,2]
[310204981,1704400272489,-524.64,0.00033972,2]
[310204982,1704400272498,-715.91,0.00033972,2]
[310204983,1704400272507,-1359.04,0.00033972,2]
[310204984,1704400272516,-500.0,0.00033972,2]
[310204985,1704400272525,-151.0,0.00033972,7]
[310204986,1704400272534,-151.0,0.00033972,7]
[310204987,1704400272544,-151.0,0.00033972,7]
[310204988,1704400272553,-151.0,0.00033972,7]
[310204989,1704400272565,-151.0,0.00033972,7]
[310204990,1704400272576,-153.84,0.00033996,2]
[310204991,1704400272587,-1000.0,0.00034,4]
[310204992,1704400272598,-557.28934285,0.00034,4]
[310204993,1704400272607,-158.86,0.00034,2]
[310204994,1704400272616,-327.91845062,0.00034,2]
[310204995,1704400272625,-327.91845062,0.00034,2]
[310204996,1704400272634,-327.91845062,0.00034,2]
[310204997,1704400272645,-327.91845062,0.00034,2]
[310204998,1704400272654,-327.91845062,0.00034,2]
[310204999,1704400272663,-327.91845062,0.00034,2]
[310205000,1704400272673,-327.91845062,0.00034,2]
[310205001,1704400272681,-327.91845062,0.00034,2]
[310205002,1704400272690,-327.91845062,0.00034,2]
[310205003,1704400272700,-327.91845062,0.00034,2]
[310205004,1704400272709,-327.91845062,0.00034,2]
[310205005,1704400272718,-327.91845062,0.00034,2]
[310205006,1704400272727,-327.91845062,0.00034,2]
[310205007,1704400272737,-327.91845062,0.00034,2]
[310205008,1704400272747,-327.91845062,0.00034,2]
[310205009,1704400272756,-327.91845062,0.00034,2]
[310205010,1704400272765,-327.91845062,0.00034,2]
[310205011,1704400272775,-327.91845062,0.00034,2]
[310205012,1704400272784,-327.91845062,0.00034,2]
[310205013,1704400272793,-327.91845062,0.00034,2]
[310205014,1704400272802,-327.91845062,0.00034,2]
[310205015,1704400272811,-327.91845062,0.00034,2]
[310205016,1704400272821,-327.91845062,0.00034,2]
[310205017,1704400272830,-327.91845062,0.00034,2]
[310205018,1704400272839,-327.91845062,0.00034,2]
[310205019,1704400272849,-327.91845062,0.00034,2]
[310205020,1704400272859,-327.91845062,0.00034,2]
[310205021,1704400272868,-327.91845062,0.00034,2]
[310205022,1704400272877,-327.91845062,0.00034,2]
[310205023,1704400272886,-327.91845062,0.00034,2]
[310205024,1704400272895,-327.91845062,0.00034,2]
[310205025,1704400272905,-327.91845062,0.00034,2]
[310205026,1704400272914,-327.91845062,0.00034,2]
[310205027,1704400272924,-327.91845062,0.00034,2]
[310205028,1704400272933,-327.91845062,0.00034,2]
[310205029,1704400272942,-327.91845062,0.00034,2]
[310205030,1704400272953,-3998.38707801,0.00034,2]
[310205031,1704400272962,-600.00000001,0.00034048,5]
[310205032,1704400272971,-1474.70996629,0.000341,6]
[310205033,1704400272980,-154.0,0.00034104,2]
[310205034,1704400273002,-166.27,0.00034106,2]
[310205035,1704400273020,-241.18,0.00034128,2]
[310205036,1704400273040,-154.0,0.00034146,5]
[310205037,1704400273061,-9730.41,0.000342,2]
[310205038,1704400273075,-500.0,0.00034245,2]
[310205039,1704400273093,-500.0,0.00034245,2]
[310205040,1704400273111,-150.0,0.00034245,2]
[310205041,1704400273129,-1013.2,0.00034245,2]
[310205042,1704400273147,-1013.2,0.00034245,2]
[310205043,1704400273164,-500.0,0.00034246,2]
[310205044,1704400273184,-500.0,0.00034246,2]
[310205045,1704400273202,-151.38077658,0.00034246,2]
[310205046,1704400273215,-500.0,0.00034246,2]
[310205047,1704400273231,-500.0,0.00034246,2]
[310205048,1704400273248,-500.0,0.00034246,2]
[310205049,1704400273262,-500.0,0.00034246,2]
[310205050,1704400273277,-500.0,0.00034246,2]
[310205051,1704400273292,-500.0,0.00034246,2]
[310205052,1704400273307,-500.0,0.00034246,2]
[310205053,1704400273322,-500.0,0.00034246,2]
[310205054,1704400273337,-500.0,0.00034246,2]
[310205055,1704400273351,-500.0,0.00034246,2]
[310205056,1704400273366,-578.37508648,0.00034246,2]
[310205057,1704400273381,-500.0,0.00034246,2]
[310205058,1704400273397,-500.0,0.00034246,2]
[310205059,1704400273411,-500.0,0.00034246,2]
[310205060,1704400273426,-500.0,0.00034246,2]
[310205061,1704400273440,-500.0,0.00034246,2]
[310205062,1704400273455,-500.0,0.00034246,2]
[310205063,1704400273469,-500.0,0.00034246,2]
[310205064,1704400273483,-500.0,0.00034246,2]
[310205065,1704400273497,-500.0,0.00034246,2]
[310205066,1704400273511,-500.0,0.00034246,2]
[310205067,1704400273525,-500.0,0.00034246,2]
[310205068,1704400273539,-444.41162384,0.00034246,2]
[310205069,1704400273552,-500.0,0.00034246,2]
[310205070,1704400273567,-395.10008816,0.00034246,2]
[310205071,1704400273581,-533.47860674,0.00034246,2]
[310205072,1704400273595,-500.0,0.00034246,2]
[310205073,1704400273609,-500.0,0.00034246,2]
[310205074,1704400273624,-500.0,0.00034246,2]
[310205075,1704400273638,-500.0,0.00034246,2]
[310205076,1704400273654,-242.93337773,0.00034246,2]
[310205077,1704400273668,-500.0,0.00034246,2]
[310205078,1704400273682,-500.0,0.00034246,2]
[310205079,1704400273698,-500.0,0.00034246,2]
[310205080,1704400273713,-500.0,0.00034246,2]
[310205081,1704400273728,-451.65905007,0.00034246,2]
[310205082,1704400273743,-500.0,0.00034246,2]
[310205083,1704400273757,-500.0,0.00034246,2]
[310205084,1704400273772,-500.0,0.00034246,2]
[310205085,1704400273789,-596.66888399,0.00034246,2]
[310205086,1704400273803,-500.0,0.00034246,2]
[310205087,1704400273818,-500.0,0.00034246,2]
[310205088,1704400273834,-604.83207,0.00034246,2]
[310205089,1704400273849,-590.55,0.00034246,2]
[310205090,1704400273864,-500.0,0.00034246,2]
[310205091,1704400273878,-500.0,0.00034246,2]
[310205092,1704400273892,-500.0,0.00034246,2]
[310205093,1704400273907,-500.0,0.00034246,2]
[310205094,1704400273922,-500.0,0.00034246,2]
[310205095,1704400273938,-500.0,0.00034246,2]
[310205096,1704400273952,-536.19936696,0.00034246,2]
[310205097,1704400273967,-500.0,0.00034246,2]
[310205098,1704400273981,-809.33,0.00034246,2]
[310205099,1704400273995,-153.77675128,0.00034246,2]
[310205100,1704400274010,-500.0,0.00034246,2]
[310205101,1704400274024,-500.0,0.00034246,2]
[310205102,1704400274038,-500.0,0.00034246,2]
[310205103,1704400274054,-500.0,0.00034246,2]
[310205104,1704400274068,-500.0,0.00034246,2]
[310205105,1704400274083,-500.0,0.00034246,2]
[310205106,1704400274096,-500.0,0.00034246,2]
[310205107,1704400274111,-346.6071326,0.00034246,2]
[310205108,1704400274126,-500.0,0.00034246,2]
[310205109,1704400274140,-500.0,0.00034246,2]
[310205110,1704400274154,-500.0,0.00034246,2]
[310205111,1704400274169,-500.0,0.00034246,2]
[310205112,1704400274185,-500.0,0.00034246,2]
[310205113,1704400274200,-500.0,0.00034246,2]
[310205114,1704400274214,-500.0,0.00034246,2]
[310205115,1704400274230,-598.90097519,0.00034246,2]
[310205116,1704400274244,-500.0,0.00034246,2]
[310205117,1704400274259,-500.0,0.00034246,2]
[310205118,1704400274274,-570.2,0.00034246,2]
[310205119,1704400274288,-500.0,0.00034246,2]
[310205120,1704400274302,-500.0,0.00034246,2]
[310205121,1704400274316,-500.0,0.00034246,2]
[310205122,1704400274329,-500.0,0.00034246,2]
[310205123,1704400274344,-500.0,0.00034246,2]
[310205124,1704400274359,-511.41,0.00034246,2]
[310205125,1704400274374,-500.0,0.00034246,2]
[310205126,1704400274389,-500.0,0.00034246,2]
[310205127,1704400274400,-500.0,0.00034246,2]
[310205128,1704400274411,-272.08601463,0.00034246,2]
[310205129,1704400274421,-500.0,0.00034246,2]
[310205130,1704400274430,-500.0,0.00034246,2]
[310205131,1704400274440,-500.0,0.00034246,2]
[310205132,1704400274450,-500.0,0.00034246,2]
[310205133,1704400274459,-500.0,0.00034246,2]
[310205134,1704400274699,-500.0,0.00034246,2]
[310205135,1704400274726,-524.64002519,0.00034246,2]
[310205136,1704400274737,-500.0,0.00034246,2]
[310205137,1704400274746,-184.37901087,0.00034246,2]
[310205138,1704400274755,-349.9782702,0.00034246,2]
[310205139,1704400274764,-826.26,0.00034246,2]
[310205140,1704400274773,-500.0,0.00034246,2]
[310205141,1704400274782,-500.0,0.00034246,2]
[310205142,1704400274792,-242.38949079,0.00034246,2]
[310205143,1704400274801,-1785.82,0.00034246,2]
[310205144,1704400274810,-541.66,0.00034246,2]
[310205145,1704400274819,-507.93794667,0.00034246,2]
[310205146,1704400274829,-500.0,0.00034246,2]
[310205147,1704400274838,-163.56402712,0.00034246,2]
[310205148,1704400274848,-500.0,0.00034246,2]
[310205149,1704400274858,-702.0,0.00034246,2]
[310205150,1704400274867,-500.0,0.00034246,2]
[310205151,1704400274877,-500.0,0.00034246,2]
[310205152,1704400274886,-500.0,0.00034246,2]
[310205153,1704400274895,-500.0,0.00034246,2]
[310205154,1704400274904,-500.0,0.00034246,2]
[310205155,1704400274914,-529.45142779,0.00034246,2]
[310205156,1704400274924,-713.92,0.00034246,2]
[310205157,1704400274933,-508.08,0.00034246,2]
[310205158,1704400274942,-500.0,0.00034246,2]
[310205159,1704400274953,-500.0,0.00034246,2]
[310205160,1704400274963,-500.0,0.00034246,2]
[310205161,1704400274972,-500.0,0.00034246,2]
[310205162,1704400274981,-500.0,0.00034246,2]
[310205163,1704400274991,-500.0,0.00034246,2]
[310205164,1704400275000,-605.7,0.00034246,2]
[310205165,1704400275009,-500.0,0.00034246,2]
[310205166,1704400275018,-500.0,0.00034246,2]
[310205167,1704400275027,-500.0,0.00034246,2]
[310205168,1704400275036,-617.34,0.00034246,2]
[310205169,1704400275045,-500.0,0.00034246,2]
[310205170,1704400275055,-500.0,0.00034246,2]
[310205171,1704400275064,-1053.81,0.00034246,2]
[310205172,1704400275073,-275.36837649,0.00034246,2]
[310205173,1704400275082,-500.0,0.00034246,2]
[310205174,1704400275091,-500.0,0.00034246,2]
[310205175,1704400275100,-500.0,0.00034246,2]
[310205176,1704400275109,-235.55052485,0.00034246,2]
[310205177,1704400275118,-500.0,0.00034246,2]
[310205178,1704400275127,-500.0,0.00034246,2]
[310205179,1704400275136,-500.0,0.00034246,2]
[310205180,1704400275145,-500.0,0.00034246,2]
[310205181,1704400275154,-500.0,0.00034246,2]
[310205182,1704400275165,-500.0,0.00034246,2]
[310205183,1704400275174,-500.0,0.00034246,2]
[310205184,1704400275182,-637.91,0.00034246,2]
[310205185,1704400275192,-500.0,0.00034246,2]
[310205186,1704400275201,-642.96,0.00034246,2]
[310205187,1704400275210,-613.87226028,0.00034246,2]
[310205188,1704400275220,-500.0,0.00034246,2]
[310205189,1704400275230,-500.0,0.00034246,2]
[310205190,1704400275239,-500.0,0.00034246,2]
[310205191,1704400275248,-500.0,0.00034246,2]
[310205192,1704400275257,-500.0,0.00034246,2]
[310205193,1704400275266,-500.0,0.00034246,2]
[310205194,1704400275275,-500.0,0.00034246,2]
[310205195,1704400275285,-150.49623425,0.00034246,2]
[310205196,1704400275295,-500.0,0.00034246,2]
[310205197,1704400275305,-500.0,0.00034246,2]
[310205198,1704400275314,-321.57388746,0.00034246,2]
[310205199,1704400275324,-500.0,0.00034246,2]
[310205200,1704400275334,-500.0,0.00034246,2]
[310205201,1704400275343,-500.0,0.00034246,2]
[310205202,1704400275354,-265.2246284,0.00034246,2]
[310205203,1704400275364,-500.0,0.00034246,2]
[310205204,1704400275373,-500.0,0.00034246,2]
[310205205,1704400275383,-500.0,0.00034246,2]
[310205206,1704400275397,-500.0,0.00034246,2]
[310205207,1704400275406,-500.0,0.00034246,2]
[310205208,1704400275415,-500.0,0.00034246,2]
[310205209,1704400275425,-500.0,0.00034246,2]
[310205210,1704400275434,-500.0,0.00034246,2]
[310205211,1704400275443,-500.0,0.00034246,2]
[310205212,1704400275454,-500.0,0.00034246,2]
[310205213,1704400275464,-500.0,0.00034246,2]
[310205214,1704400275504,-500.0,0.00034246,2]
[310205215,1704400275513,-500.0,0.00034246,2]
[310205216,1704400275523,-500.0,0.00034246,2]
[310205217,1704400275532,-583.92,0.00034246,2]
[310205218,1704400275542,-500.0,0.00034246,2]
[310205219,1704400275555,-500.0,0.00034246,2]
[310205220,1704400275565,-253.98952279,0.00034246,2]
[310205221,1704400275575,-500.0,0.00034246,2]
[310205222,1704400275584,-500.0,0.00034246,2]
[310205223,1704400275593,-500.0,0.00034246,2]
[310205224,1704400275603,-1262.62,0.00034246,2]
[310205225,1704400275612,-644.12,0.00034246,2]
[310205226,1704400275621,-500.0,0.00034246,2]
[310205227,1704400275630,-500.0,0.00034246,2]
[310205228,1704400275640,-500.0,0.00034246,2]
[310205229,1704400275652,-500.0,0.00034246,2]
[310205230,1704400275661,-500.0,0.00034246,2]
[310205231,1704400275672,-500.0,0.00034246,2]
[310205232,1704400275682,-500.0,0.00034246,2]
[310205233,1704400275691,-500.0,0.00034246,2]
[310205234,1704400275702,-500.0,0.00034246,2]
[310205235,1704400275714,-501.37,0.00034246,2]
[310205236,1704400275723,-500.0,0.00034246,2]
[310205237,1704400275733,-500.0,0.00034246,2]
[310205238,1704400275742,-500.0,0.00034246,2]
[310205239,1704400275752,-511.59,0.00034246,2]
[310205240,1704400275761,-500.0,0.00034246,2]
[310205241,1704400275771,-500.0,0.00034246,2]
[310205242,1704400275780,-500.0,0.00034246,2]
[310205243,1704400275789,-500.0,0.00034246,2]
[310205244,1704400275798,-500.0,0.00034246,2]
[310205245,1704400275807,-500.0,0.00034246,2]
[310205246,1704400275816,-508.32001966,0.00034246,2]
[310205247,1704400275825,-500.0,0.00034246,2]
[310205248,1704400275834,-500.0,0.00034246,2]
[310205249,1704400275844,-500.0,0.00034246,2]
[310205250,1704400275854,-500.0,0.00034246,2]
[310205251,1704400275864,-500.0,0.00034246,2]
[310205252,1704400275874,-500.0,0.00034246,2]
[310205253,1704400275883,-500.0,0.00034246,2]
[310205254,1704400275893,-159.65,0.00034246,2]
[310205255,1704400275903,-500.0,0.00034246,2]
[310205256,1704400275912,-500.0,0.00034246,2]
[310205257,1704400275922,-500.0,0.00034246,2]
[310205258,1704400275932,-984.97,0.00034246,2]
[310205259,1704400275942,-500.0,0.00034246,2]
[310205260,1704400275951,-500.0,0.00034246,2]
[310205261,1704400275960,-500.0,0.00034246,2]
[310205262,1704400275970,-500.0,0.00034246,2]
[310205263,1704400275979,-500.0,0.00034246,2]
[310205264,1704400275989,-500.0,0.00034246,2]
[310205265,1704400275998,-500.0,0.00034246,2]
[310205266,1704400276007,-500.0,0.00034246,2]
[310205267,1704400276017,-500.0,0.00034246,2]
[310205268,1704400276027,-513.73713698,0.00034246,2]
[310205269,1704400276038,-500.0,0.00034246,2]
[310205270,1704400276047,-500.0,0.00034246,2]
[310205271,1704400276057,-500.0,0.00034246,2]
[310205272,1704400276067,-500.0,0.00034246,2]
[310205273,1704400276076,-2813.94,0.00034246,2]
[310205274,1704400276085,-500.0,0.00034246,2]
[310205275,1704400276094,-500.0,0.00034246,2]
[310205276,1704400276104,-500.0,0.00034246,2]
[310205277,1704400276114,-500.0,0.00034246,2]
[310205278,1704400276124,-1043.97,0.00034246,2]
[310205279,1704400276133,-4226.54,0.00034246,2]
[310205280,1704400276143,-815.95,0.00034246,2]
[310205281,1704400276152,-579.28,0.00034246,2]
[310205282,1704400276162,-500.0,0.00034246,2]
[310205283,1704400276171,-500.0,0.00034246,2]
[310205284,1704400276180,-500.0,0.00034246,2]
[310205285,1704400276190,-500.0,0.00034246,2]
[310205286,1704400276199,-500.0,0.00034246,2]
[310205287,1704400276209,-500.93,0.00034246,2]
[310205288,1704400276219,-1545.25,0.00034246,2]
[310205289,1704400276228,-500.0,0.00034246,2]
[310205290,1704400276238,-896.7,0.00034246,2]
[310205291,1704400276248,-500.0,0.00034246,2]
[310205292,1704400276257,-500.0,0.00034246,2]
[310205293,1704400276266,-1118.72,0.00034246,2]
[310205294,1704400276275,-766.02,0.00034246,2]
[310205295,1704400276285,-525.53,0.00034246,2]
[310205296,1704400276294,-1839.95,0.00034246,2]
[310205297,1704400276303,-1961.18,0.00034246,2]
[310205298,1704400276313,-666.57,0.00034246,2]